bitfinex-derivatives/quotes_SOLF0:USTF0_20250719
["timestamp","ask_amount","ask_price","bid_price","bid_amount"]
[1752930254333,5.6238,177.73,177.71,3.23]
[1752930254933,3.24,177.72,177.71,3.23]
[1752930256739,3.24,177.72,177.71,8.8544]
[1752930257129,8.01809951,177.75,177.72,5.6239]
[1752930257334,3.24,177.74,177.73,3.23]
[1752930258628,3.24,177.74,177.73,8.8538]
[1752930258832,3.24,177.74,177.73,3.23]
[1752930260340,3.24,177.74,177.71,3.29]
[1752930260732,8.8636,177.74,177.68,2.39489951]
[1752930260937,5.6236,177.74,177.72,3.29]
[1752930261136,3.28,177.73,177.72,3.29]
[1752930263145,2.39489951,177.73,177.63,3.29]
[1752930263345,3.28,177.7,177.63,5.68489951]
[1752930263549,3.28,177.7,177.64,3.29]
[1752930263748,2.39489951,177.68,177.62,104.95879657]
[1752930264047,3.28,177.66,177.64,3.29]
[1752930264240,3.28,177.66,177.65,3.29]
[1752930265250,3.28,177.66,177.65,8.9163]
[1752930265447,3.28,177.67,177.66,3.29]
[1752930266847,3.28,177.68,177.67,3.29]
[1752930268748,5.6251,177.69,177.67,3.29]
[1752930269055,3.28,177.69,177.67,3.29]
[1752930269454,3.28,177.72,177.69,3.29]
[1752930269649,3.28,177.72,177.68,5.6254]
[1752930269857,3.28,177.72,177.7,3.29]
[1752930270054,3.28,177.71,177.7,3.29]
[1752930271548,8.9044,177.71,177.65,2.39489951]
[1752930271756,103.12,177.76,177.63,3.29]
[1752930271757,3.28,177.68,177.63,3.29]
[1752930272149,3.28,177.66,177.63,3.29]
[1752930273057,5.6265,177.65,177.61,3.29]
[1752930273360,3.28,177.64,177.62,3.29]
[1752930273563,8.9066,177.64,177.61,8.9173]
[1752930273756,3.28,177.63,177.61,8.9173]
[1752930273962,3.28,177.62,177.61,8.9173]
[1752930274160,3.28,177.62,177.55,3.29]
[1752930274355,3.28,177.61,177.57,3.29]
[1752930274664,3.28,177.64,177.61,5.6273]
[1752930274864,3.28,177.64,177.62,3.29]
[1752930275355,3.28,177.63,177.51,21.52952217]
[1752930275560,2.39489951,177.63,177.55,3.29]
[1752930275762,3.28,177.62,177.55,3.29]
[1752930276165,3.28,177.6,177.57,8.9188]
[1752930276358,3.28,177.6,177.58,3.29]
[1752930276760,8.9079,177.6,177.56,5.629]
[1752930276958,5.628,177.68,177.57,3.29]
[1752930277158,2.39489951,177.63,177.57,3.29]
[1752930277357,5.6278,177.61,177.58,3.29]
[1752930277555,3.28,177.6,177.58,3.29]
[1752930278665,3.28,177.59,177.54,380.87489951]
[1752930279066,3.28,177.59,177.54,378.48]
[1752930279263,3.28,177.59,177.55,5.68489951]
[1752930279458,3.28,177.59,177.56,3.29]
[1752930280162,3.28,177.58,177.54,380.87489951]
[1752930280361,3.28,177.6,177.54,380.87489951]
[1752930280663,5.628,177.6,177.56,5.6291]
[1752930280862,5.628,177.69,177.57,3.29]
[1752930281169,3.28,177.6,177.58,3.29]
[1752930281466,3.28,177.6,177.57,5.6286]
[1752930281467,3.28,177.6,177.59,3.29]
[1752930285971,3.28,177.62,177.59,8.918]
[1752930286272,3.28,177.61,177.6,3.29]
[1752930289265,8.9074,177.61,177.6,3.29]
[1752930289771,3.28,177.61,177.6,3.29]
[1752930294974,8.9074,177.61,177.6,3.29]
[1752930295272,3.28,177.61,177.6,3.29]
[1752930297477,8.9073,177.61,177.6,3.29]
[1752930300477,3.28,177.61,177.6,3.29]
[1752930300679,3.28,177.61,177.59,3.19]
[1752930301775,3.29,177.6,177.59,3.19]
[1752930302674,3.29,177.6,177.51,3.19]
[1752930302875,2.39489951,177.6,177.52,2.39489951]
[1752930303080,3.29,177.57,177.53,3.19]
[1752930303276,19.99531874,177.66,177.55,3.19]
[1752930303277,3.29,177.61,177.55,3.19]
[1752930303880,3.29,177.59,177.58,3.19]
[1752930304186,3.29,177.59,177.57,3.19]
[1752930304482,3.29,177.58,177.57,3.19]
[1752930304881,3.29,177.61,177.57,3.19]
[1752930305474,3.29,177.6,177.59,3.19]
[1752930305879,3.29,177.61,177.59,5.6277]
[1752930306181,2.39489951,177.61,177.57,3.19]
[1752930306380,5.6281,177.59,177.57,3.19]
[1752930306582,3.29,177.58,177.57,3.19]
[1752930308589,8.9183,177.58,177.57,3.19]
[1752930309591,3.29,177.57,177.56,8.8187]
[1752930309780,3.29,177.57,177.56,3.19]
[1752930314787,3.29,177.57,177.56,8.8189]
[1752930316091,5.6286,177.57,177.56,3.19]
[1752930316292,8.9186,177.57,177.56,3.19]
[1752930316789,3.29,177.57,177.56,8.8189]
[1752930320292,3.29,177.57,177.56,3.19]
[1752930321788,8.9186,177.57,177.54,5.6295]
[1752930321994,2.39489951,177.56,177.53,3.08]
[1752930322191,2.39489951,177.56,177.48,2.39489951]
[1752930322394,3.05,177.53,177.48,2.39489951]
[1752930322595,3.05,177.53,177.51,3.08]
[1752930322793,3.05,177.53,177.49,3.08]
[1752930323186,3.05,177.52,177.47,4.65324158]
[1752930323391,3.05,177.55,177.5,3.08]
[1752930323594,3.05,177.55,177.48,3.08]
[1752930323790,2.39489951,177.54,177.48,5.6314]
[1752930323995,3.05,177.53,177.46,3.08]
[1752930324191,3.05,177.53,177.47,2.39489951]
[1752930324398,5.6304,177.52,177.49,5.631]
[1752930324591,5.6304,177.52,177.44,382.97324158]
[1752930324592,3.05,177.51,177.47,2.39489951]
[1752930324793,3.05,177.51,177.48,3.08]
[1752930325896,3.05,177.5,177.49,3.08]
[1752930329401,3.05,177.55,177.49,3.08]
[1752930329700,5.6302,177.53,177.49,3.08]
[1752930329900,3.05,177.52,177.49,3.08]
[1752930330293,8.6802,177.52,177.49,8.7109]
[1752930330497,3.05,177.51,177.49,8.7109]
[1752930330896,3.05,177.51,177.5,3.08]
[1752930331700,3.05,177.51,177.5,8.7108]
[1752930332296,3.05,177.51,177.5,3.08]
[1752930332794,3.05,177.5,177.49,3.08]
[1752930333894,3.05,177.5,177.49,8.7112]
[1752930334802,3.05,177.5,177.47,2.39489951]
[1752930334803,2.39489951,177.57,177.5,3.08]
[1752930335106,3.05,177.52,177.5,3.08]
[1752930335495,3.05,177.52,177.51,8.7103]
[1752930335700,3.05,177.52,177.51,3.08]
[1752930338303,8.6802,177.52,177.51,3.08]
[1752930338505,3.05,177.51,177.5,3.08]
[1752930341108,3.05,177.51,177.5,8.7108]
[1752930341304,3.05,177.51,177.5,3.08]
[1752930341909,3.05,177.54,177.5,3.08]
[1752930342707,5.6301,177.53,177.5,5.6307]
[1752930342908,3.05,177.52,177.51,3.08]
[1752930343110,3.05,177.52,177.5,3.08]
[1752930343408,11.97661923,177.61,177.5,3.08]
[1752930343409,8.6805,177.51,177.5,3.08]
[1752930343608,3.05,177.51,177.5,3.08]
[1752930346113,3.05,177.52,177.5,3.08]
[1752930346908,3.05,177.52,177.5,5.6307]
[1752930347104,3.05,177.52,177.51,3.08]
[1752930347406,5.6295,177.55,177.51,8.7105]
[1752930347610,3.05,177.53,177.52,3.08]
[1752930348007,3.05,177.53,177.46,105.87489951]
[1752930348207,3.05,177.53,177.49,3.08]
[1752930348618,5.6306,177.51,177.49,3.08]
[1752930348816,3.05,177.5,177.49,3.08]
[1752930351615,3.05,177.5,177.48,3.13]
[1752930352007,8.6808,177.5,177.48,3.13]
[1752930352213,3.13,177.49,177.47,3.13]
[1752930353818,8.7615,177.49,177.47,3.13]
[1752930354017,3.13,177.48,177.47,3.13]
[1752930354710,3.13,177.48,177.45,8.7624]
[1752930354913,3.13,177.48,177.45,5.6324]
[1752930355421,3.13,177.48,177.47,3.13]
[1752930360119,3.13,177.48,177.43,2.39489951]
[1752930360120,8.7615,177.48,177.45,5.6324]
[1752930360321,3.13,177.47,177.45,3.13]
[1752930360525,3.13,177.47,177.43,3.13]
[1752930360724,3.13,177.47,177.44,3.13]
[1752930360924,3.13,177.45,177.42,3.13]
[1752930361126,5.52489951,177.45,177.4,3.13]
[1752930361428,5.52489951,177.45,177.41,3.13]
[1752930361429,3.13,177.44,177.41,3.13]
[1752930361823,8.763,177.44,177.41,5.6337]
[1752930362019,3.13,177.43,177.41,5.6337]
[1752930362327,3.13,177.43,177.41,8.7637]
[1752930363121,8.7631,177.43,177.41,3.13]
[1752930363327,3.13,177.42,177.41,3.13]
[1752930363830,3.13,177.44,177.4,3.13]
[1752930364122,5.633,177.44,177.4,3.13]
[1752930364328,3.13,177.43,177.4,3.13]
[1752930364528,3.13,177.42,177.4,3.13]
[1752930364724,3.13,177.42,177.41,8.7635]
[1752930365526,3.13,177.42,177.41,3.13]
[1752930366731,8.7634,177.42,177.41,3.13]
[1752930367225,3.13,177.41,177.39,127.96993017]
[1752930367830,8.7637,177.41,177.39,127.96993017]
[1752930368030,3.13,177.4,177.39,127.96993017]
[1752930368629,8.764,177.4,177.39,3.13]
[1752930369926,3.13,177.38,177.37,3.13]
[1752930370332,3.13,177.38,177.33,3.13]
[1752930370528,3.13,177.35,177.33,3.13]
[1752930371033,3.13,177.35,177.3,2.39489951]
[1752930371034,3.13,177.35,177.34,8.7659]
[1752930371232,3.13,177.36,177.34,8.7659]
[1752930371537,3.13,177.36,177.35,3.13]
[1752930371838,5.6355,177.36,177.32,5.6365]
[1752930372029,3.13,177.35,177.3,3.13]
[1752930372425,3.13,177.34,177.32,3.13]
[1752930373438,3.13,177.31,177.3,3.13]
[1752930375139,3.13,177.31,177.3,8.7671]
[1752930376332,3.13,177.31,177.3,3.13]
[1752930377935,3.13,177.31,177.3,8.7671]
[1752930378135,3.13,177.31,177.3,3.13]
[1752930378330,2.39489951,177.39,177.33,5.6361]
[1752930378539,3.13,177.38,177.34,3.13]
[1752930378933,3.13,177.36,177.34,3.13]
[1752930380640,3.2,177.38,177.35,3.01]
[1752930381135,3.2,177.36,177.33,8.6461]
[1752930381337,3.2,177.36,177.34,3.01]
[1752930381735,8.8353,177.36,177.34,3.01]
[1752930381939,3.2,177.35,177.33,3.01]
[1752930382238,3.2,177.34,177.33,3.01]
[1752930382436,3.2,177.34,177.33,8.6462]
[1752930384439,3.2,177.34,177.33,3.01]
[1752930386143,8.8359,177.34,177.32,3.01]
[1752930386338,3.2,177.33,177.29,3.01]
[1752930386540,3.2,177.33,177.3,3.01]
[1752930387041,5.6367,177.32,177.3,3.01]
[1752930387243,3.2,177.31,177.3,3.01]
[1752930387439,3.2,177.31,177.25,3.01]
[1752930387643,3.2,177.28,177.25,3.01]
[1752930388043,3.2,177.28,177.21,3.01]
[1752930388243,3.2,177.24,177.21,3.01]
[1752930388440,5.6388,177.25,177.21,3.01]
[1752930388441,3.2,177.23,177.21,3.01]
[1752930388743,3.2,177.23,177.22,5.6397]
[1752930388946,3.2,177.25,177.22,3.01]
[1752930389139,3.2,177.28,177.22,5.40489951]
[1752930389346,8.8384,177.26,177.24,3.01]
[1752930389540,2.39489951,177.29,177.23,3.01]
[1752930389744,3.2,177.26,177.23,3.01]
[1752930389945,5.6391,177.24,177.23,3.01]
[1752930390147,3.2,177.24,177.23,3.01]
[1752930390442,3.2,177.22,177.2,3.01]
[1752930390640,2.39489951,177.25,177.18,3.01]
[1752930390845,3.2,177.24,177.18,3.01]
[1752930391246,3.2,177.2,177.15,3.01]
[1752930391442,3.2,177.22,177.15,3.01]
[1752930391845,3.2,177.22,177.18,3.01]
[1752930392039,3.2,177.22,177.19,3.01]
[1752930392243,3.2,177.22,177.2,3.01]
[1752930392444,3.2,177.22,177.21,3.01]
[1752930392843,8.8398,177.22,177.19,3.01]
[1752930393142,3.2,177.21,177.2,3.01]
[1752930393446,8.8402,177.21,177.18,3.01]
[1752930393640,3.2,177.21,177.19,3.01]
[1752930393842,3.2,177.21,177.18,3.01]
[1752930394344,2.39489951,177.23,177.18,3.01]
[1752930394345,3.2,177.19,177.18,3.01]
[1752930394945,8.8406,177.19,177.18,3.01]
[1752930395142,3.2,177.19,177.18,3.01]
[1752930395543,8.8406,177.19,177.18,3.01]
[1752930395749,3.2,177.19,177.18,3.01]
[1752930396250,3.2,177.19,177.16,5.6415]
[1752930396551,3.2,177.19,177.17,3.01]
[1752930397349,3.2,177.18,177.17,3.01]
[1752930398050,3.2,177.18,177.17,8.6513]
[1752930398348,3.2,177.18,177.17,3.01]
[1752930399150,3.2,177.2,177.18,3.01]
[1752930399552,3.2,177.19,177.17,5.6413]
[1752930400052,3.2,177.19,177.18,3.01]
[1752930400647,2.39489951,177.3,177.18,3.01]
[1752930400854,3.2,177.24,177.18,3.01]
[1752930401347,5.6397,177.22,177.19,5.6405]
[1752930401554,3.2,177.21,177.2,3.01]
[1752930402350,3.2,177.21,177.2,8.6503]
[1752930403455,3.2,177.21,177.2,3.01]
[1752930404348,3.2,177.23,177.17,3.01]
[1752930404549,3.2,177.26,177.19,3.01]
[1752930404747,3.2,177.26,177.19,5.40489951]
[1752930404950,3.2,177.26,177.2,3.01]
[1752930405249,3.2,177.24,177.16,2.39489951]
[1752930405449,3.2,177.24,177.17,3.01]
[1752930405648,5.6395,177.23,177.2,5.6403]
[1752930405851,3.2,177.22,177.21,3.01]
[1752930406449,28.1732,177.32,177.21,3.01]
[1752930406450,2.39489951,177.26,177.21,3.01]
[1752930406653,3.2,177.25,177.21,3.01]
[1752930407059,3.2,177.25,177.23,5.6394]
[1752930407259,3.2,177.25,177.24,3.01]
[1752930407462,3.2,177.27,177.24,3.01]
[1752930408159,3.2,177.26,177.25,3.01]
[1752930409563,8.8384,177.26,177.25,3.01]
[1752930409758,5.6384,177.26,177.25,3.01]
[1752930409962,3.2,177.25,177.24,3.01]
[1752930410457,3.2,177.25,177.23,5.6393]
[1752930410663,3.2,177.25,177.23,8.8093]
[1752930410861,3.21,177.24,177.23,5.6393]
[1752930411363,3.21,177.24,177.23,3.17]
[1752930411957,3.21,177.24,177.23,8.8094]
[1752930412159,3.21,177.24,177.23,3.17]
[1752930413166,8.849,177.24,177.23,3.17]
[1752930413361,3.21,177.24,177.21,3.17]
[1752930414061,8.8497,177.22,177.21,3.17]
[1752930414264,3.21,177.22,177.2,3.17]
[1752930414565,3.21,177.21,177.2,3.17]
[1752930415965,5.64,177.21,177.18,3.17]
[1752930416164,5.64,177.21,177.14,103.64]
[1752930416461,3.21,177.2,177.14,103.64]
[1752930416766,5.60489951,177.2,177.11,3.17]
[1752930416968,3.21,177.19,177.15,5.6417]
[1752930417173,8.8509,177.19,177.15,5.6417]
[1752930417469,8.8509,177.19,177.17,3.17]
[1752930417470,3.21,177.18,177.17,3.17]
[1752930421485,3.21,177.17,177.15,3.17]
[1752930421984,3.21,177.16,177.15,3.17]
[1752930422384,3.21,177.16,177.13,5.6425]
[1752930422573,3.21,177.16,177.14,3.17]
[1752930423175,3.21,177.15,177.14,3.17]
[1752930423380,3.21,177.15,177.14,8.8122]
[1752930423783,3.21,177.18,177.15,3.17]
[1752930423986,3.21,177.25,177.15,2.39489951]
[1752930424176,3.21,177.21,177.16,3.17]
[1752930424486,3.21,177.19,177.17,5.6411]
[1752930424780,3.21,177.19,177.17,3.17]
[1752930425584,3.21,177.21,177.14,3.17]
[1752930425981,3.21,177.21,177.15,2.39489951]
[1752930426284,3.21,177.21,177.16,3.17]
[1752930426484,3.21,177.21,177.17,3.17]
[1752930426680,3.21,177.19,177.15,3.17]
[1752930427283,5.6414,177.17,177.15,3.17]
[1752930427487,3.21,177.16,177.15,3.17]
[1752930428589,3.21,177.16,177.15,8.8119]
[1752930429886,3.21,177.18,177.16,5.6415]
[1752930430090,3.21,177.17,177.16,5.6415]
[1752930430582,3.21,177.17,177.16,8.8115]
[1752930431277,3.21,177.17,177.15,5.6418]
[1752930431682,3.21,177.17,177.14,3.17]
[1752930431883,2.39489951,177.15,177.09,3.17]
[1752930432183,3.21,177.14,177.09,3.17]
[1752930432382,3.21,177.13,177.12,3.17]
[1752930432989,8.8525,177.13,177.12,3.17]
[1752930434283,3.21,177.12,177.08,3.17]
[1752930434480,5.6423,177.14,177.08,3.17]
[1752930434686,8.8523,177.14,177.08,3.17]
[1752930434882,3.21,177.13,177.12,3.17]
[1752930435481,3.21,177.2,177.13,3.17]
[1752930435796,2.39489951,177.2,177.13,3.17]
[1752930435986,3.21,177.17,177.13,3.17]
[1752930436489,3.21,177.19,177.13,2.39489951]
[1752930436790,3.21,177.19,177.14,3.17]
[1752930437193,8.8507,177.19,177.14,3.17]
[1752930437593,3.21,177.19,177.14,3.17]
[1752930438493,3.21,177.19,177.18,5.6409]
[1752930438689,3.21,177.19,177.18,8.8109]
[1752930438891,3.21,177.23,177.19,3.17]
[1752930439093,2.39489951,177.25,177.19,5.56489951]
[1752930439094,3.21,177.25,177.19,5.56489951]
[1752930439287,3.21,177.25,177.12,8.63515436]
[1752930439288,3.21,177.27,177.21,2.39489951]
[1752930439494,3.21,177.27,177.22,3.17]
[1752930439794,3.21,177.27,177.26,3.17]
[1752930439995,3.21,177.27,177.21,2.39489951]
[1752930440193,3.03,177.26,177.25,3.25]
[1752930441398,2.39489951,177.29,177.25,3.25]
[1752930441602,3.03,177.27,177.26,3.25]
[1752930442398,3.03,177.3,177.27,3.25]
[1752930442595,3.03,177.33,177.27,3.25]
[1752930442800,3.03,177.31,177.28,3.25]
[1752930443006,3.03,177.29,177.28,3.25]
[1752930443393,3.03,177.29,177.24,3.25]
[1752930443599,2.39489951,177.27,177.24,3.25]
[1752930443903,3.03,177.26,177.24,3.25]
[1752930444405,8.6686,177.26,177.24,3.25]
[1752930444599,3.03,177.25,177.24,3.25]
[1752930445103,11.06309951,177.27,177.24,3.25]
[1752930445298,8.6682,177.27,177.24,3.25]
[1752930445499,3.03,177.26,177.19,2.39489951]
[1752930445699,3.03,177.26,177.25,3.25]
[1752930446805,8.6683,177.26,177.25,3.25]
[1752930447108,3.03,177.25,177.24,3.25]
[1752930447502,8.6686,177.25,177.24,3.25]
[1752930447805,3.03,177.25,177.22,3.25]
[1752930448004,3.03,177.22,177.21,3.25]
[1752930448605,5.639,177.24,177.21,3.25]
[1752930448803,2.39489951,177.25,177.21,3.25]
[1752930448998,5.42489951,177.25,177.21,3.25]
[1752930449205,3.03,177.25,177.23,3.25]
[1752930449807,8.6687,177.25,177.23,3.25]
[1752930450712,3.03,177.24,177.22,3.25]
[1752930450905,5.6384,177.26,177.22,3.25]
[1752930451114,3.03,177.25,177.22,3.25]
[1752930451303,5.6384,177.26,177.22,3.25]
[1752930451509,3.03,177.24,177.22,3.25]
[1752930452007,3.03,177.24,177.18,3.25]
[1752930452710,8.669,177.24,177.18,3.25]
[1752930453116,3.03,177.24,177.18,3.25]
[1752930453813,3.03,177.24,177.21,5.6399]
[1752930454015,2.39489951,177.27,177.22,3.25]
[1752930454218,3.03,177.26,177.22,3.25]
[1752930454417,3.03,177.25,177.22,8.8894]
[1752930454621,3.03,177.25,177.24,3.25]
[1752930455615,3.03,177.25,177.22,3.25]
[1752930456216,3.03,177.25,177.17,2.39489951]
[1752930456217,3.03,177.23,177.2,3.25]
[1752930456617,3.03,177.23,177.21,3.25]
[1752930457822,8.6693,177.23,177.21,3.25]
[1752930458017,3.03,177.22,177.16,106.21489951]
[1752930458224,3.03,177.22,177.2,3.25]
[1752930459724,3.03,177.21,177.2,3.25]
[1752930459922,3.03,177.21,177.18,3.25]
[1752930460226,3.03,177.21,177.19,3.25]
[1752930460425,3.03,177.21,177.16,103.82]
[1752930460426,3.03,177.2,177.17,3.25]
[1752930460625,3.03,177.2,177.16,103.82]
[1752930460829,3.03,177.2,177.18,3.25]
[1752930461922,5.6404,177.2,177.18,3.25]
[1752930462120,3.03,177.19,177.18,3.25]
[1752930464124,3.03,177.18,177.17,3.25]
[1752930465828,8.6703,177.2,177.17,3.25]
[1752930466028,3.03,177.19,177.17,3.25]
[1752930467136,3.03,177.19,177.18,3.25]
[1752930467522,8.6705,177.19,177.18,3.25]
[1752930467727,3.03,177.2,177.16,3.25]
[1752930468224,3.03,177.18,177.16,3.25]
[1752930468429,3.03,177.18,177.17,3.25]
[1752930468629,3.03,177.18,177.16,3.25]
[1752930469726,5.6412,177.17,177.16,3.25]
[1752930469932,8.6712,177.17,177.16,3.25]
[1752930470336,3.03,177.17,177.16,3.25]
[1752930473040,8.6712,177.17,177.16,3.25]
[1752930473544,3.31,177.16,177.11,3.18]
[1752930473734,3.31,177.16,177.12,3.18]
[1752930474237,2.39489951,177.15,177.12,3.18]
[1752930474437,3.31,177.14,177.12,3.18]
[1752930475241,3.31,177.13,177.12,3.18]
[1752930475843,2.39489951,177.15,177.12,3.18]
[1752930476040,3.31,177.14,177.12,3.18]
[1752930476337,3.31,177.14,177.13,3.18]
[1752930479238,8.9521,177.14,177.13,3.18]
[1752930480137,8.9521,177.14,177.1,112.4833]
[1752930480346,3.31,177.13,177.11,3.18]
[1752930480538,3.31,177.12,177.1,109.3033]
[1752930481239,3.31,177.12,177.11,3.18]
[1752930481444,3.31,177.12,177.1,106.84]
[1752930481839,5.6431,177.11,177.1,3.18]
[1752930482040,8.9531,177.11,177.1,3.18]
[1752930482639,3.31,177.09,177.07,3.18]
[1752930482836,3.31,177.1,177.06,103.54]
[1752930483037,3.31,177.08,177.05,3.18]
[1752930483239,3.31,177.07,177.05,3.18]
[1752930483843,5.6447,177.06,177.05,3.18]
[1752930484039,8.9547,177.06,177.05,3.18]
[1752930484437,3.31,177.06,177.05,3.18]
[1752930484642,3.31,177.08,177.05,3.18]
[1752930485048,8.03889951,177.09,177.05,5.6448]
[1752930485245,3.31,177.07,177.02,103.56]
[1752930485743,3.31,177.07,177.03,3.18]
[1752930485944,3.31,177.07,177.05,5.6448]
[1752930486145,3.31,177.07,177.06,3.18]
[1752930487746,3.31,177.08,177.04,3.18]
[1752930487945,3.31,177.06,177.04,3.18]
[1752930488146,3.31,177.03,177.01,3.18]
[1752930488542,3.31,177.02,177.01,3.18]
[1752930488737,3.31,177.02,176.99,3.18]
[1752930488938,3.31,177.01,176.99,3.18]
[1752930489845,8.9563,177.01,176.99,3.18]
[1752930490045,3.31,177.0,176.99,3.18]
[1752930490246,3.31,177.03,176.99,3.18]
[1752930490642,3.31,177.02,176.99,5.6468]
[1752930490849,3.31,177.02,177.01,3.18]
[1752930491943,3.31,177.01,176.99,3.18]
[1752930492152,13.68069951,177.12,176.97,3.18]
[1752930492153,8.9569,176.99,176.97,3.18]
[1752930492350,5.6469,176.99,176.97,3.18]
[1752930492649,3.31,176.98,176.93,3.18]
[1752930492849,5.70489951,177.0,176.99,3.18]
[1752930493245,3.31,177.0,176.99,3.18]
[1752930493752,3.31,177.03,176.99,3.18]
[1752930494245,3.31,177.02,176.99,3.18]
[1752930494450,3.31,177.01,176.99,3.18]
[1752930494645,2.39489951,177.04,176.97,3.18]
[1752930494852,2.39489951,177.02,176.97,3.18]
[1752930495053,3.31,177.01,176.97,3.18]
[1752930495252,2.39489951,177.02,176.97,3.18]
[1752930495451,5.70489951,177.02,177.0,5.6466]
[1752930495650,5.70489951,177.02,177.01,3.18]
[1752930496151,3.31,177.02,177.01,3.18]
[1752930496753,3.31,177.04,177.01,3.18]
[1752930496954,3.31,177.04,177.02,5.6456]
[1752930497148,3.31,177.04,177.01,3.18]
[1752930497149,2.39489951,177.08,177.03,3.18]
[1752930497348,3.31,177.07,177.03,3.18]
[1752930497548,3.31,177.06,177.05,3.18]
[1752930498749,8.9547,177.06,177.02,5.6458]
[1752930498953,3.31,177.05,177.04,3.18]
[1752930499255,5.6454,177.04,177.0,5.6465]
[1752930499452,5.6454,177.04,177.01,3.18]
[1752930499656,3.31,177.03,176.99,3.18]
[1752930499851,3.31,177.05,176.99,3.18]
[1752930500454,3.3,177.04,177.02,3.08]
[1752930500654,3.3,177.04,177.03,3.08]
[1752930502058,3.3,177.07,177.03,3.08]
[1752930502554,5.6447,177.06,177.04,3.08]
[1752930502754,3.3,177.05,177.04,3.08]
[1752930503753,8.945,177.05,177.04,3.08]
[1752930505651,3.3,177.05,177.04,3.08]
[1752930506058,3.3,177.06,177.04,3.08]
[1752930506557,3.3,177.06,177.05,3.08]
[1752930509355,8.9447,177.06,177.05,3.08]
[1752930509559,8.9447,177.06,177.03,3.08]
[1752930509760,3.3,177.05,177.03,3.08]
[1752930512857,3.3,177.06,177.03,3.08]
[1752930513556,3.3,177.05,177.03,3.08]
[1752930515364,8.945,177.05,177.01,5.6461]
[1752930515553,3.3,177.05,176.99,2.39489951]
[1752930515759,3.3,177.05,177.0,3.08]
[1752930516861,3.3,177.07,177.0,3.08]
[1752930517561,3.3,177.13,177.03,2.39489951]
[1752930517866,3.3,177.13,177.06,3.08]
[1752930518056,5.6427,177.13,177.07,5.6442]